Cogmind - Beta 13 X1 @@@ ROGUE MODE // 2023.11.23 @ 18:47:53 Player: Plexion Result: Destroyed by D-53 Grenadier with Mini Grenade Launcher Performance ------------- Evolutions (0) 0 Regions Visited (2) 400 Robots Destroyed (23) 115 Value Destroyed (622) 622 Prototype IDs (0) 0 Alien Tech Used (0) 0 Bonus (0) 0 TOTAL SCORE: 1137 Bonus ------- None Cogmind --------- Core Integrity 0/250 Matter 264/300 Energy 100/100 System Corruption 0% Temperature Cool (0) Movement Core (700) Ox13 Location -10/Mines Parts ------- > --- POWER (1) -------- (None) > --- PROPULSION (2) --- (None) > --- UTILITY (2) ------ High-capacity Storage Unit Core Shielding > --- WEAPON (2) ------- (None) > --- INVENTORY (20) --- Flight Unit Small Storage Unit EM Pulse Gun Small Laser Peak State ------------ > --- POWER ------------ Ion Engine > --- PROPULSION ------- Light Treads Light Treads > --- UTILITY ---------- Small Storage Unit Core Shielding > --- WEAPON ----------- EM Pulse Gun Assault Rifle > --- INVENTORY -------- Ion Engine Medium Laser Grenade Launcher [Rating: 7] Favorites ----------- Power Ion Engine Engine Ion Engine Propulsion Light Treads Treads Light Treads Utility Core Shielding Storage High-capacity Storage Unit Protection Core Shielding Weapon Assault Rifle Energy Gun Medium Laser Ballistic Gun Assault Rifle Launcher Grenade Launcher Build | -11 -10 -10 ------- Run | Jun Mat Min Slots Evolved . | . . . Power . | . . . Propulsion . | . . . Utility . | . . . Weapon . | . . . Parts Attached 24 | 6 15 3 Power 2 | 1 1 . Engine 2 | 1 1 . Core . | . . . Reactor . | . . . Propulsion 4 | 2 1 1 Treads 4 | 2 1 1 Leg . | . . . Wheel . | . . . Hover . | . . . Flight . | . . . Utility 3 | 1 2 . Device . | . . . Storage 2 | 1 1 . Processor . | . . . Hackware . | . . . Protection 1 | . 1 . Artifact . | . . . Weapon 15 | 2 11 2 Energy Gun 9 | 1 7 1 Energy Cannon . | . . . Ballistic Gun 2 | 1 1 . Ballistic Cannon . | . . . Launcher 4 | . 3 1 Special Weapon . | . . . Impact Weapon . | . . . Slashing Weapon . | . . . Piercing Weapon . | . . . Special Melee Weapon . | . . . Unidentified Prototypes . | . . . Parts Lost 10 | . 2 8 Power 2 | . 1 1 Propulsion 3 | . . 3 Utility . | . . . Weapon 5 | . 1 4 Highest Loss Streak 7 | . 1 7 To Critical Strikes . | . . . Average Slot Usage (%) 99 | . 99 99 Engine 14 | . 14 14 Treads 27 | . 28 27 Storage 14 | . 14 14 Protection 13 | . 13 14 Energy Gun 15 | . 15 13 Ballistic Gun 11 | . 11 14 Naked Turns . | . . . Heaviest Build 51 | 14 51 51 Greatest Support 40 | 40 40 40 Greatest Overweight (x) 1 | . 1 1 Average Overweight (x) . | . . 1 Largest Inventory Capacity 20 | 8 20 20 Average Capacity 19 | 6 19 20 Most Carried 7 | 2 7 6 Average Carried 5 | 1 5 5 Final Capacity 20 | 8 20 20 Final Carried 6 | 2 6 4 Class Distribution -------------------- 100% | Mutant Dominant Class ---------------- Mutant | -10/Materials Mutant | -10/Mines Resources | -11 -10 -10 ----------- Run | Jun Mat Min Matter Collected 520 | 243 221 56 Remotely . | . . . Salvage Created 716 | . 607 109 Parts 53 | . 43 10 Haulers Intercepted 1 | . 1 . Recyclers Shooed . | . . . Parts Field Recycled . | . . . Retrieved Matter . | . . . Parts Self-Destructed . | . . . Prevented . | . . . Kills | -11 -10 -10 ------- Run | Jun Mat Min Combat Hostiles Destroyed 18 | . 15 3 Guns 14 | . 12 2 AOE 4 | . 3 1 Classes Destroyed 5 | . 4 1 Tunneler 1 | . . 1 Hauler 1 | . 1 . Watcher 3 | . 3 . Swarmer 4 | . 3 1 Grunt 14 | . 12 2 Best Kill Streak 3 | . 3 2 Combat Bots Only 3 | . 3 2 Max Kills in Single Turn 2 | . 2 1 Gunslinging . | . . . Exploded 2 | . 2 1 Melee . | . . . Uniques/NPCs Destroyed . | . . . Combat | -11 -10 -10 -------- Run | Jun Mat Min Damage Taken 1343 | . 566 777 Core 254 | . 92 162 Absorbed by Shields . | . . . Redirected to Shielding 46 | . 20 26 Core Remaining (%) 100 | 100 . . Volleys Fired 60 | . 47 13 Largest 2 | . 2 2 Hottest 90 | . 90 70 Shots Fired 110 | . 90 20 Gun 102 | . 86 16 Cannon . | . . . Launcher 8 | . 4 4 Special . | . . . Kinetic 28 | . 19 9 Thermal 73 | . 66 7 Explosive 8 | . 4 4 Electromagnetic 1 | . 1 . Robot Hit Streak 33 | . 33 5 Robot Miss Streak 3 | . 3 1 Penetration Max . | . . . Secondary Targets 1 | . 1 . Max Gunslinging Chain 1 | . 1 . Shots Hit Robots 79 | . 66 13 Core Hits 50 | . 34 16 Critical Kills . | . . . Critical Parts Destroyed . | . . . Critical Strikes 3 | . 3 . Burn 3 | . 3 . Melee Attacks . | . . . Impact . | . . . Slashing . | . . . Piercing . | . . . Sneak Attacks . | . . . Combat Hostiles . | . . . Follow-up Attacks . | . . . Damage Inflicted 1322 | 2 1026 294 Guns 978 | . 842 136 Cannons . | . . . Explosions 323 | . 165 158 Melee . | . . . Ramming 21 | 2 19 . Kinetic 280 | . 193 87 Thermal 698 | . 649 49 Explosive 323 | . 165 158 Electromagnetic . | . . . Impact . | . . . Slashing . | . . . Piercing . | . . . Highest Corruption . | . . . Average Corruption . | . . . Corruption Purged . | . . . Corruption Blocked . | . . . Overload Shots . | . . . Overflow Damage 32 | . 10 22 Projectiles . | . . . Explosions 32 | . 10 22 Melee . | . . . Knockbacks 1 | . 1 . Impact 1 | . 1 . Kinetic . | . . . Secondary . | . . . Self-Inflicted Damage 116 | . 60 56 Shots 7 | . 3 4 Rammed 6 | 1 5 . Targets Rammed 6 | 1 5 . Kicked . | . . . Crushed . | . . . Highest Temperature 240 | . 240 108 Average Temperature 53 | . 54 51 Received Heat Transfer 297 | . 204 93 Siege Activations . | . . . Robots Corrupted . | . . . Combat Hostiles . | . . . Parts Fried . | . . . Impact Corruptions . | . . . Robots Melted . | . . . Combat Hostiles . | . . . Parts Melted 2 | . 2 . Heat Transferred 2041 | . 1893 148 Parts Sabotaged . | . . . Parts Stolen . | . . . Parts Stripped . | . . . Power Chain Reactions . | . . . Missiles Intercepted . | . . . Alert | -11 -10 -10 ------- Run | Jun Mat Min Peak Influence 195 | . 195 117 Initial 46 | . . 46 Average 78 | . 73 111 Maximum Alert Level . | . . . Low Security (%) 100 | 100 100 100 Level 1 . | . . . Level 2 . | . . . Level 3 . | . . . Level 4 . | . . . Level 5 . | . . . High Security . | . . . Max Security . | . . . Squads Dispatched 4 | . 4 . Investigation 3 | . 3 . Extermination . | . . . Reinforcement 1 | . 1 . Assault . | . . . Garrison . | . . . Intercept . | . . . Searches Triggered . | . . . Construction Impeded . | . . . Haulers Reinforced . | . . . Active Scanning Responses . | . . . Cargo Convoy Interrupts . | . . . Stealth | -11 -10 -10 --------- Run | Jun Mat Min Distress Signals 2 | . 2 . Communications Jammed . | . . . Distress Signals . | . . . Times Spotted 26 | . 22 4 Peak Tracking Total 3 | . 3 2 Tactical Retreats 3 | . 3 . Traps | -11 -10 -10 ------- Run | Jun Mat Min Traps Triggered 1 | . 1 . Indirectly . | . . . Trap Hack Attempts . | . . . Triggered . | . . . Disarmed . | . . . Reprogrammed . | . . . Reused . | . . . Traps Extracted . | . . . Installed . | . . . Triggered . | . . . Machines | -11 -10 -10 ---------- Run | Jun Mat Min Machines Disabled 1 | . 1 . Max in Single Turn 1 | . 1 . Machines Repaired . | . . . Machines Sabotaged . | . . . Overloaded Fab Kills . | . . . Hacking | -11 -10 -10 --------- Run | Jun Mat Min Machines Accessed 8 | . 8 . Terminals 6 | . 6 . Fabricators . | . . . Repair Stations . | . . . Recycling Units 2 | . 2 . Scanalyzers . | . . . Garrison Access . | . . . Total Hacks 17 | . 17 . Successful 6 | . 6 . Failed 11 | . 11 . Catastrophic 3 | . 3 . Database Lockouts . | . . . Manual 19 | . 19 . Terminals 14 | . 14 . Fabricators . | . . . Repair Stations . | . . . Recycling Units 3 | . 3 . Scanalyzers . | . . . Garrison Access . | . . . Terminal Hacks 3 | . 3 . Robot Analysis 3 | . 3 . Fabricator Hacks . | . . . Repair Station Hacks . | . . . Recycling Unit Hacks . | . . . Scanalyzer . | . . . Garrison Access Hacks . | . . . Unauthorized Hacks 3 | . 3 . Terminals 1 | . 1 . Disrupt 1 | . 1 . Fabricators . | . . . Repair Stations . | . . . Recycling Units 2 | . 2 . Tunnel 2 | . 2 . Scanalyzers . | . . . Garrison Access . | . . . Data Cores Recovered . | . . . Used . | . . . Hacking Detections 6 | . 6 . Full Trace Events . | . . . Feedback Events . | . . . Feedback Blocked . | . . . Robot Schematics Acquired . | . . . Robots Built . | . . . Authchips . | . . . Time . | . . . Total Robot Build Rating . | . . . Part Schematics Acquired . | . . . Parts Built . | . . . Authchips . | . . . Time . | . . . Total Part Build Rating . | . . . Parts Repaired . | . . . Time . | . . . Parts Recycled . | . . . Recycled Matter . | . . . Retrieved Matter . | . . . Retrieved Components . | . . . Parts Scanalyzed . | . . . Part Schematics Acquired . | . . . Parts Damaged . | . . . Bothacking | -11 -10 -10 ------------ Run | Jun Mat Min Used RIF Installer . | . . . Robots Hacked . | . . . Non-combat . | . . . Combat . | . . . Robot Hacks Applied . | . . . Relay Couplers Released . | . . . Fabnet Peak Effective % . | . . . Robots Rewired . | . . . Allies Hacked . | . . . Hacks Repelled . | . . . Allies | -11 -10 -10 -------- Run | Jun Mat Min Total Allies . | . . . Largest Group . | . . . Highest-Rated Group . | . . . Highest-Rated Ally . | . . . Total Orders . | . . . Ally Attacks . | . . . Total Damage . | . . . Kills . | . . . Allies Corrupted . | . . . Allies Melted . | . . . Intel | -11 -10 -10 ------- Run | Jun Mat Min Robot Analysis Total 3 | . 3 . Derelict Logs Recovered 2 | . . 2 Drone Launches . | . . . Drone Recoveries . | . . . Exploration | -11 -10 -10 ------------- Run | Jun Mat Min Turns Passed 1917 | 83 1454 380 Spaces Moved 728 | 48 537 143 Core 5 | 5 . . Treads 723 | 43 537 143 Legs . | . . . Wheels . | . . . Hover . | . . . Flight . | . . . Fastest Speed 50 | 50 160 240 Average Speed 229 | 148 234 240 Slowest Speed 240 | 160 240 240 Overloaded Moves . | . . . Propulsion Burnouts . | . . . Robots Hopped . | . . . Cave-ins Triggered . | . . . Exploration Rate (%) 41 | 4 74 45 Regions Visited 2 Branch Regions 1 Pre-discovered Areas 3 | . 2 1 Known Exits Taken . | . . . Unknown Exits Taken 2 | 1 1 . Scrap Searched . | . . . Spaces Dug 6 | . 6 . Terrain Destroyed 40 | . 18 22 Melee . | . . . Projectile . | . . . AOE 40 | . 18 22 Terrain Rammed . | . . . Walls Destroyed . | . . . Machines Disabled . | . . . Actions | -11 -10 -10 --------- Run | Jun Mat Min Total 848 | 56 632 160 Wait 25 | . 25 . Move 726 | 47 536 143 Hop . | . . . Pick Up 5 | 2 2 1 Fast Attach 9 | 6 3 . Attach 5 | . 2 3 Detach 2 | . 2 . Swap 10 | . 10 . Drop . | . . . Fire 60 | . 47 13 Melee . | . . . Ram . | . . . Kick . | . . . Crush 6 | 1 5 . Escape Stasis . | . . . Rewire . | . . . Trap . | . . . Miscellaneous . | . . . Route ------- -11/Junkyard -10/Materials (discovered 4 exits: [*Mat x3] / [*Min]) -10/Mines (discovered 1 exit: [*Mat]) History --------- Turn | Location | Event 49 | -11/Junkyard | Discovered new exit (range 15) 84 | -11/Junkyard | Entered Materials 314 | -10/Materials | Build established: Mutant 589 | -10/Materials | Discovered new exit (range 10) 1206 | -10/Materials | Discovered new exit (range 15) 1398 | -10/Materials | Discovered new exit (range 14) 1476 | -10/Materials | Discovered new exit (range 16) 1538 | -10/Materials | Entered Mines 1653 | -10/Mines | Discovered new exit (range 14) 1698 | -10/Mines | Learned location of Storage (-7) 1727 | -10/Mines | Learned 4 Materials zone layouts 1801 | -10/Mines | Received a Rocket Launcher from a helpful Derelict 1887 | -10/Mines | Assembled infested the area 1907 | -10/Mines | Core integrity fell below 50% 1913 | -10/Mines | Core integrity fell below 20% 1918 | -10/Mines | Destroyed by D-53 Grenadier with Mini Grenade Launcher Last Messages --------------- laser wimps, I say!" 01801_ YQ-KVD(g): "Would you like a rocket launcher? I know I would if I were you, so I'm going to lend you mine." 01801_ YQ-KVD(g) slips back into the shadows. 01804_ Acquired Rocket Launcher. 01882_ K-01 Serf cleans the Matter Pump. 01887_ ALERT: Infestation in the mines, dispatching Demolisher response squad. 01894_ K-01 Serf destroyed. 01905_ C-30 ARC bursts open, deploying its payload. 01905_ D-53 Grenadier unfolds itself. 01906_ Lgt. Treads destroyed. 01908_ Med. Laser destroyed. 01910_ Assault Rifle destroyed. 01911_ The unstable cave ceiling collapses. 01912_ Ion Engine destroyed. 01916_ Lgt. Treads destroyed. 01917_ The unstable cave ceiling collapses. 01917_ T-07 Excavator destroyed. 01918_ Rocket Launcher destroyed. Map ----- +----------------------------------------------------+ | | | ?????????????????????????????????????????????????? | | ###??????????????????????????????????????????????? | | # #?????????????????????????????????????????????? | | #??######????????????????????????????????????? | | # ### ##???????????????????????????????????? | | ?# #???????????????????????????????????? | | ??# ##??????????????????????????????????? | | ?## ##?????????????????????????????????? | | ?# ### ##????????????????????????????????? | | # ##?## #????????????????????????????????? | | # ##???# #????????????????????????????????? | | # #?????# ##????????????????????????????????? | | ###??????# #?????????????????????????????????? | | ?????????## ##???###??????????????????????????? | | ??????????### #### ##?????????????????????????? | | ????????????## ## #?????????????????????????? | | ?????????????# #?????????????#???????????? | | ?????????????# #???????????? ##??????????? | | ?????????????## ##?####????? ##?????????? | | ??????????????### ##### ##### ##????????? | | ????????????????## ### % #?????? | | ?????????????????# ## """ #????????? | | ?????????????????#= # """ #????????? | | ?????????????????#%! # """ ???????? | | ?????????????????#* @ # ????????? | | ????????????????# # ???????????? | | ????????????????# dd # # ???????????? | | ????????????????# % #??????????? | | # ##########????# ## ###??????????? | | # ####### # ## #? ##????????????? | | ?# ## #? ? ##?????????????? | | ????????# ### #? #?# ##??????????????? | | ????????# ##########?# #? #??###???????????????? | | ????????# #?????????? ??#????????????????????? | | ????????# #?????????? k#???????????????????????? | | ?????#### #?????????? ???????????????????????? | | ?????# #????????? ???????????????????????? | | ?????# ####????????? ???????????????????????? | | ?????# ##??????????? ???????????????????????? | | ????## ##?????????? ???????????????????????? | | ???## #??????????? ???????????????????????? | | ?### #??????????????????????????????????????? | | ## < ##??????????????????????????????????????? | | # ##???????????????????????????????????????? | | ## ####????????????????????????????????????????? | | ?## #???????????????????????????????????????????? | | ??# #???????????????????????????????????????????? | | ??# #???????????????????????????????????????????? | | ??# #???????????????????????????????????????????? | +----------------------------------------------------+ Best States ------------- Heat Dissipation 25 Energy Generation 10 Energy Capacity 250 Matter Stores 300 Matter Capacity 300 Sight Range 16 Terrain Scan Density 10 Core Shielding 20 Evasion (%) 40 Recoil Reduction 2 Item Schematics ----------------- None Robot Schematics ------------------ None Fabricated ------------ Nothing Alien Tech Used ----------------- None Achievements -------------- None Challenges ------------ None Game ------ Seed SpliceDeliveryMatrix Manual? 0 Play Time 00:07:20 Cumulative 485.5 hours Start 2023.11.23 @ 18:41:44 End 2023.11.23 @ 18:47:53 Sessions 1 Manual Loads 0 Difficulty Rogue Special Mode None Game No. 569 Rogue 482 Adventurer 87 Explorer 0 Win Type - Total 27 Types 8/0/15/1/1/0/2/0/0 Lore% 91 Gallery% 93 Achievement% 77 Wizard Run 0 Options --------- ASCII 0 Keyboard 1 Movement Numpad Keybinds 0 Fullscreen 1 Font 18/SmallcapsGlow Map View 76x50 Tactical HUD 1 Map Filters NONE Filters NONE Steam 1 RUN: 7a36b897-e9ff-484a-93cd-85a5ba154ce5